{"text_format":"1","workbook":"xlsx","n_sheets":10,"sheets":["Introdução","Menu","EE","AG","LED","AQ","Steam","Air","+Infos","Cadastros"],"not_rendered":{"charts":1,"images":5,"macros":1,"external_links":2,"defined_names":130,"comments":0,"pivot_tables":0},"unopened":[],"bounds":{"document_bytes":16777216,"sheet_cells":100000,"rows_first":2000,"rows_last":500,"rows_between":2000,"halvings":0,"cell_chars":16384,"cell_head_chars":4096},"cells_cut":0,"cells_raw":0,"read":"whole","date_system":"1900"}

{"sheet":"Introdução","index":0,"n_rows":10,"n_cols":2,"rows_kept":10,"cut":false,"hidden":false,"merged":[[9,1,10,11],[4,1,7,11]]}
[]
[]
[]
[]
[null,"Antes de tudo, precisamos que habilite a utilização de macros que estará aparecendo logo acima ­"]
[]
[]
[]
[null,"A mensagem aparecerá no seguinte formato:"]
[null,"Caso já tenha habilitado as macros, pode continuar tranquilamente. Mas, se fechou o alerta e não habilitou as macros, solicitamos que feche e abra a planilha para uma melhor navegação."]

{"sheet":"Menu","index":1,"n_rows":25,"n_cols":8,"rows_kept":25,"cut":false,"hidden":false,"merged":[[20,7,20,10],[22,7,22,10],[5,1,9,10],[13,1,17,10],[24,1,27,10]]}
[]
[]
[]
[]
[]
[null,"Para iniciarmos a análise, solicitamos que preencha obrigatoriamente os questionamentos sobre ENERGIA ELÉTRICA, os demais tópicos são opcionais."]
[]
[]
[]
[]
[]
[]
[]
[null,"E caso não possua algumas das demais utilidades indicadas abaixo basta não indicar no formulário que não indicaremos em nosso relatório."]
[]
[]
[]
[]
[]
[]
[null,"Como podemos chamar a unidade em análise?"]
[]
[null,"Em qual estado a unidade está localizada?",null,null,null,null,null,"Selecione um estado"]
[]
[null,"Podemos auxiliar nas mais distintas análises atuando na redução da carga ou geração:"]

{"sheet":"EE","index":2,"n_rows":78,"n_cols":10,"rows_kept":78,"cut":false,"hidden":false,"merged":[[65,1,68,10],[77,1,77,10],[4,7,4,10],[12,9,12,10],[26,3,28,10],[56,1,62,10],[6,1,10,10],[14,1,18,10]]}
[]
[]
[]
[]
[null,"Selecione ao lado sua distribuidora de energia elétrica:",null,null,null,null,null,"Selecione a concessionária"]
[null,null,null,null,null,null,null,{"$f":"IF(VLOOKUP(H5,Cadastros!E3:G65,3,FALSE)=VLOOKUP(Menu!H23,Cadastros!B2:C29,2,FALSE),VLOOKUP(H5,Cadastros!E3:F65,2,FALSE),\"Verifique a concessionária indicada\")","v":{"$error":"#N/A"}}]
[null,"Agora, vamos fazer 7 perguntas sobre suas contas de energia. Se tiver qualquer dificuldade no preenchimento, nos envie as 12 últimas faturas e responderemos o MAIS rápido possível!"]
[]
[]
[]
[]
[]
["1.","Qual é a sua modalidade e grupo de contratação?",null,null,null,null,null,"Selecione","-","Selecione"]
[null,null,null,null,null,null,null,{"$f":"VLOOKUP(H13,Cadastros!I2:J8,2,FALSE)","v":"…"}]
[null,"Se possui energia contratada no mercado livre, não tem problema, fazemos a conta do mesmo jeito. (Observação Mais: A contratação de energia no mercado livre de energia elétrica é um segundo contrato realizado com uma comercializadora de energia para compra direta da commodity. Os clientes no mercado livre possuem duas faturas de energia elétrica no mês - a compra da energia e o pagamento pela utilização da linha)"]
[]
[]
[]
[]
[]
["2.","Atualmente, possui energia contratada no mercado livre?"]
[null,"Caso possua energia contratada no mercado livre, poderia nos indicar o range da contratação?"]
[]
[]
[]
[]
[null,"Observações Gerais:",null,0]
[]
[]
[]
["3.","Conseguiria preencher a tabela abaixo com as informações médias de consumo?"]
[]
[null,{"$f":"IF(Cadastros!$K$9=1,\"Consumo Total\",IF(AND(Cadastros!$K$9<>1,Cadastros!$N$6=1),\"Demanda Ponta\",IF(AND(Cadastros!$K$9<>1,Cadastros!$N$6=2),\"Demanda Contratada\",\"\")))","v":""},null,null,null,{"$f":"IF(OR(B33=\"Demanda Ponta\",B33=\"Demanda Fora de Ponta\",B33=\"Demanda Contratada\"),\"kW\",IF(B33=\"\",\"\",\"kWh/mês\"))","v":""}]
[null,{"$f":"IF(Cadastros!$K$9=1,\"\",IF(AND(Cadastros!$K$9<>1,Cadastros!$N$6=1),\"Demanda Fora de Ponta\",IF(AND(Cadastros!$K$9<>1,Cadastros!$N$6=2),\"Consumo Ponta\",\"\")))","v":""},null,null,null,{"$f":"IF(OR(B34=\"Demanda Ponta\",B34=\"Demanda Fora de Ponta\",B34=\"Demanda Contratada\"),\"kW\",IF(B34=\"\",\"\",\"kWh/mês\"))","v":""}]
[null,{"$f":"IF(Cadastros!$K$9=1,\"\",IF(AND(Cadastros!$K$9<>1,Cadastros!$N$6=1),\"Consumo Ponta\",IF(AND(Cadastros!$K$9<>1,Cadastros!$N$6=2),\"Consumo Fora de Ponta\",\"\")))","v":""},null,null,null,{"$f":"IF(OR(B35=\"Demanda Ponta\",B35=\"Demanda Fora de Ponta\",B35=\"Demanda Contratada\"),\"kW\",IF(B35=\"\",\"\",\"kWh/mês\"))","v":""}]
[null,{"$f":"IF(Cadastros!$K$9=1,\"\",IF(AND(Cadastros!$K$9<>1,Cadastros!$N$6=1),\"Consumo Fora de Ponta\",IF(AND(Cadastros!$K$9<>1,Cadastros!$N$6=2),\"\",\"\")))","v":""},null,null,null,{"$f":"IF(OR(B36=\"Demanda Ponta\",B36=\"Demanda Fora de Ponta\",B36=\"Demanda Contratada\"),\"kW\",IF(B36=\"\",\"\",\"kWh/mês\"))","v":""}]
[]
["4.","Possui geradores para operação em emergência?"]
[]
[null,"Se sim,"]
[null,null,"Qual seria a capacidade de cada gerador?",null,null,null,null,null,null,"kW"]
[null,null,"Quantos geradores a unidade possui?",null,null,null,null,null,null,"unidade(s)"]
[null,null,"Quanto, em média, se gasta com combustível?",null,null,null,null,null,null,"R$/mês"]
[null,null,"Quanto, em média, se gasta com manutenção?",null,null,null,null,null,null,"R$/mês"]
[]
["5.","Nosso estudo deve considerar alguma expansão futura?"]
[]
[null,"Se sim,"]
[null,null,"Qual seria o aumento na demanda de energia elétrica?",null,null,null,null,null,null,"kW"]
[null,null,"Qual seria o aumento no consumo de energia elétrica?",null,null,null,null,null,null,"MWh/mês"]
[]
["6.","Possui problemas com quedas de energia? Se sim, quanto tempo?",null,null,null,null,null,null,null,"horas/queda"]
[]
["7.","Possui problemas com oscilações? Se sim, quantas oscilações?",null,null,null,null,null,null,null,"oscilações/mês"]
[]
["8.","Fique à vontade para fazer quaisquer considerações abaixo:"]
[]
[]
[]
[]
[]
[]
[]
[]
["9.","Considerações da Mais:"]
[null,"• Informações como diagrama unifilar e faturas de energia elétrica poderão agregar muito ao desenvolvimento da solução de eficiência energética;\n• Caso não possua algumas das informações solicitadas acima, fique à vontade para fazer suas considerações no campo 8."]
[]
[]
[]
[]
[null,"GOSTARIA DE ANALISAR ALGUM OUTRO PONTO? "]
[]
[]
[]
[]
[]
[]
[null,"CLIQUE EM CONCLUIR E ENVIE OS DADOS PARA RECEBER A ANÁLISE PRÉVIA:"]

{"sheet":"AG","index":3,"n_rows":74,"n_cols":11,"rows_kept":74,"cut":false,"hidden":false,"merged":[[49,1,49,10],[52,1,58,10],[21,1,21,2],[22,1,22,2],[23,1,23,2],[4,1,4,10],[7,1,8,10],[61,1,64,10],[73,1,73,10],[17,1,17,2],[18,1,18,2],[19,1,19,2],[20,1,20,2],[12,1,13,2],[14,1,14,2],[12,4,13,4],[12,10,13,10],[12,9,13,9],[15,1,15,2],[16,1,16,2],[12,3,13,3]]}
[]
[]
[]
[]
[null,"A Mais pode ajudar seu sistema, independente da sua necessidade:"]
[]
[]
[null,"Para auxiliarmos precisamos apenas entender alguns pontos:"]
[]
["1.","Qual é a área total climatizada ou área que se pretende climatizar?",null,null,null,null,null,null,null,null,"m²"]
[]
["2.","Primeiramente, poderia listar apenas os chillers instalados em sua unidade? Se possuir."]
[null,"Chiller",null,"Tipo de Compressor","Tipo de Condensação","Capacidade","Potência","Qtde","Cap. Total","Ano de Fabricação","Operacional\nReserva"]
[null,null,null,null,null,"TR","kW",null,"TR"]
[1,null,null,null,null,null,null,null,{"$f":"F15*H15","v":0}]
[2,null,null,null,null,null,null,null,0]
[3,null,null,null,null,null,null,null,0]
[4,null,null,null,null,null,null,null,0]
[5,null,null,null,null,null,null,null,0]
[6,null,null,null,null,null,null,null,0]
[7,null,null,null,null,null,null,null,0]
[8,null,null,null,null,null,null,null,0]
[9,null,null,null,null,null,null,null,0]
[10,null,null,null,null,null,null,null,0]
[null,"Total",null,null,null,{"$f":"SUM(F15:F24)","v":0},{"$f":"SUM(G15:G24)","v":0},{"$f":"SUM(H15:H24)","v":0},{"$f":"SUM(I15:I24)","v":0}]
[]
["3.","Caso possua chiller de condensação a água, qual é o custo de água?",null,null,null,null,null,null,null,null,"R$/m³"]
[null,"(Considerar o custo da água e esgoto. Caso possua água de poço, indicar o valor contemplando o tratamento)"]
[]
["4.","Abaixo listamos alguns equipamentos, poderia indicar se possui variadores de frequência:"]
[null,"-","Unidade de Resfriamento - Chillers",null,null,null,"Selecione"]
[null,"-","Bombas de Água Gelada Primária",null,null,null,"Selecione"]
[null,"-","Bombas de Água Gelada Secundária",null,null,null,"Selecione"]
[null,"-","Bombas de Água de Condensação",null,null,null,"Selecione"]
[null,"-","Torres de Resfriamento",null,null,null,"Selecione"]
[]
["5.","O sistema atual possui automação? Leitura das variáveis e monitoramento?"]
[]
["6.","Possui previsão de expansão da central de água gelada atual?"]
[null,"Caso positivo, quantos TR devemos considerar adicionais ao sistema?",null,null,null,null,null,null,null,null,"TR"]
[]
["7.","Quanto podemos considerar de custo médio de operação e manutenção?",null,null,null,null,null,null,null,null,"R$/mês"]
[]
["8.","Poderia nos detalhar um pouco mais a operação da central?"]
[null,"-","Quantas horas por dia a central opera?",null,null,null,null,null,"horas/dia"]
[null,"-","Quantos dias por semana a central opera?",null,null,null,null,null,"dias/semana "]
[null,"-","Em média, operaram",null,null,"compressores de um total de ",null,null,null,"compressores"]
[]
["9.","Possui algum chiller de absorção de calor, favor indicar abaixo:"]
[]
[]
["10.","Fique à vontade para fazer quaisquer considerações abaixo:"]
[]
[]
[]
[]
[]
[]
[]
[]
["11.","Considerações da Mais:"]
[null,"• Informações como fluxograma e medições do sistema de automação poderão agregar muito ao desenvolvimento da solução de eficiência energética;\n• Caso não possua algumas das informações solicitadas acima, fique à vontade para fazer suas considerações no campo 10."]
[]
[]
[]
[]
[null,"GOSTARIA DE ANALISAR ALGUM OUTRO PONTO? "]
[]
[]
[]
[]
[]
[]
[null,"CLIQUE EM CONCLUIR E ENVIE OS DADOS PARA RECEBER A ANÁLISE PRÉVIA:"]

{"sheet":"LED","index":4,"n_rows":74,"n_cols":10,"rows_kept":74,"cut":false,"hidden":false,"merged":[[62,1,64,9],[73,1,73,10],[53,1,59,9],[8,9,9,9],[9,2,10,2],[9,3,10,3],[8,1,10,1],[8,4,10,4],[8,5,10,5],[8,6,10,6],[8,7,9,7],[8,8,9,8]]}
[]
[]
[]
[]
["1.","Qual seria o custo médio com troca de lâmpadas e reatores",null,null,null,null,null,null,null,"R$/mês"]
[]
["2.","Tabela de Levantamento"]
[]
[null,"Áreas","Solução Atual",null,"Número\nde Luminárias","Número de Lâmpadas em cada Luminária","Número \nTotal de Pontos","Utilização Diária","Potência Lâmpadas com Reatores","Consumo Mensal"]
[null,null,"Tipo de Lâmpada","Tipo de\nLuminária"]
[null,null,null,null,null,null,null,"hora/dia","W","kWh/mês"]
[1,null,null,null,null,null,{"$f":"F12*E12","v":0},null,null,{"$f":"I12*H12*G12*365/12/1000","v":0}]
[2,null,null,null,null,null,{"$f":"F13*E13","v":0},null,null,{"$f":"I13*H13*G13*365/12/1000","v":0}]
[3,null,null,null,null,null,0,null,null,0]
[4,null,null,null,null,null,0,null,null,0]
[5,null,null,null,null,null,0,null,null,0]
[6,null,null,null,null,null,0,null,null,0]
[7,null,null,null,null,null,0,null,null,0]
[8,null,null,null,null,null,0,null,null,0]
[9,null,null,null,null,null,0,null,null,0]
[10,null,null,null,null,null,0,null,null,0]
[11,null,null,null,null,null,0,null,null,0]
[12,null,null,null,null,null,0,null,null,0]
[13,null,null,null,null,null,0,null,null,0]
[14,null,null,null,null,null,0,null,null,0]
[15,null,null,null,null,null,0,null,null,0]
[16,null,null,null,null,null,0,null,null,0]
[17,null,null,null,null,null,0,null,null,0]
[18,null,null,null,null,null,0,null,null,0]
[19,null,null,null,null,null,0,null,null,0]
[20,null,null,null,null,null,0,null,null,0]
[21,null,null,null,null,null,0,null,null,0]
[22,null,null,null,null,null,0,null,null,0]
[23,null,null,null,null,null,0,null,null,0]
[24,null,null,null,null,null,0,null,null,0]
[25,null,null,null,null,null,0,null,null,0]
[26,null,null,null,null,null,0,null,null,0]
[27,null,null,null,null,null,0,null,null,0]
[28,null,null,null,null,null,0,null,null,0]
[29,null,null,null,null,null,0,null,null,0]
[30,null,null,null,null,null,0,null,null,0]
[31,null,null,null,null,null,0,null,null,0]
[32,null,null,null,null,null,0,null,null,0]
[33,null,null,null,null,null,0,null,null,0]
[34,null,null,null,null,null,0,null,null,0]
[35,null,null,null,null,null,0,null,null,0]
[36,null,null,null,null,null,0,null,null,0]
[37,null,null,null,null,null,0,null,null,0]
[38,null,null,null,null,null,0,null,null,0]
[39,null,null,null,null,null,0,null,null,0]
[40,null,null,null,null,null,0,null,null,0]
[]
["3.","Fique à vontade para fazer quaisquer considerações abaixo:"]
[]
[]
[]
[]
[]
[]
[]
[]
["4.","Considerações da Mais:"]
[null,"• Informações como projeto luminotécnico pode agregar ao desenvolvimento da solução de eficiência energética;\n• Caso não possua algumas das informações solicitadas acima, fique à vontade para fazer suas considerações no campo 3."]
[]
[]
[]
[null,"GOSTARIA DE ANALISAR ALGUM OUTRO PONTO? "]
[]
[]
[]
[]
[]
[]
[null,"CLIQUE EM CONCLUIR E ENVIE OS DADOS PARA RECEBER A ANÁLISE PRÉVIA:"]

{"sheet":"AQ","index":5,"n_rows":48,"n_cols":10,"rows_kept":48,"cut":false,"hidden":false,"merged":[[47,1,47,10],[35,1,38,10],[4,7,4,10],[6,7,6,10],[7,7,7,10],[23,1,23,10],[26,1,32,10],[5,7,5,10]]}
[]
[]
[]
[]
["1.","Para aquecimento da água, qual matriz é utilizada?",null,null,null,null,null,"Selecione"]
[null,null,null,null,"Descreva abaixo:"]
[null,null,null,null,"Qual é o poder calorífico (PCI)?"]
[null,null,null,{"$f":"IF(Cadastros!$AE$11=2,\"Distribuidora de Gás Natural\",\"Concessionária de Energia Elétrica\")","v":"Concessionária de Energia Elétrica"},null,null,null,"Selecione"]
[]
["2.","Qual é a temperatura da água quente?",null,null,null,null,null,null,null,"°C"]
[]
["3.","Podemos considerar 25°C de entrada no aquecedor?"]
[null,"Ok, sem problemas, qual temperatura seria ideal?",null,null,null,null,null,null,null,"°C"]
[]
["4.","Quanto é o consumo de água quente por dia?",null,null,null,null,null,null,null,"m³/dia"]
[]
["5.","Quanto que se consome de combustível/energia com aquecimento?",null,null,null,null,null,null,null,"Selecione"]
[]
["6.","E, qual é o custo mensal deste insumo energético?",null,null,null,null,null,null,null,"R$/mês"]
[]
["7.","Qual é o custo de manutenção mensal deste sistema?",null,null,null,null,null,null,null,"R$/mês"]
[]
["8.","Caso esteja falando do aquecimento de um outro fluido, poderia nos informar o nome e propriedades?"]
[]
[]
["9.","Fique à vontade para fazer quaisquer considerações abaixo:"]
[]
[]
[]
[]
[]
[]
[]
[]
["10.","Considerações da Mais:"]
[null,"• Informações como projeto luminotécnico pode agregar ao desenvolvimento da solução de eficiência energética;\n• Caso não possua algumas das informações solicitadas acima, fique à vontade para fazer suas considerações no campo 3."]
[]
[]
[]
[]
[null,"GOSTARIA DE ANALISAR ALGUM OUTRO PONTO? "]
[]
[]
[]
[]
[]
[]
[null,"CLIQUE EM CONCLUIR E ENVIE OS DADOS PARA RECEBER A ANÁLISE PRÉVIA:"]

{"sheet":"Steam","index":6,"n_rows":80,"n_cols":11,"rows_kept":80,"cut":false,"hidden":false,"merged":[[79,1,79,10],[67,1,70,10],[4,7,4,10],[5,7,5,10],[7,7,7,10],[6,7,6,10],[58,1,64,10]]}
[]
[]
[]
[]
["1.","Para a produção de vapor, qual matriz é utilizada?",null,null,null,null,null,"Selecione"]
[null,null,null,null,"Descreva abaixo:"]
[null,null,null,null,"Qual é o poder calorífico (PCI)?"]
[null,null,null,{"$f":"IF(Cadastros!$AE$12=2,\"Distribuidora de Gás Natural\",\"Concessionária de Energia Elétrica\")","v":"Concessionária de Energia Elétrica"},null,null,null,"Selecione"]
[]
["2.","Qual é a pressão de operação do vapor?",null,null,null,null,null,null,null,"kgf/cm² (bar)"]
[]
["3.","Podemos considerar o vapor como saturado?"]
[null,"Ok, sem problemas, qual temperatura do vapor superaquecido?",null,null,null,null,null,null,null,"°C"]
[]
["4.","Qual é a capacidade máxima de produção de vapor?",null,null,null,null,null,null,null,"ton/h"]
[]
["5.","Qual é o pico de produção atual?",null,null,null,null,null,null,null,"ton/h"]
[]
["6.","Qual é a temperatura da água de makeup? (25°C)",null,null,null,null,null,null,null,"°C"]
[]
["7.","Qual é a produção mensal média de vapor?",null,null,null,null,null,null,null,"ton/mês"]
[]
["8.","Deste vapor produzido, qual é o % de retorno de condensado?"]
[]
["9.","Qual é a temperatura do retorno de condensado?",null,null,null,null,null,null,null,"°C"]
[]
["10.","Como funciona a operação das caldeiras atualmente?",null,null,null,null,null,null,"horas/dia",null,"dias/sem."]
[null,null,null,{"$f":"\"Equivalente a \"&TEXT(H27*J27*365/12/7,\"#.##0\")&\" horas por mês\"","v":"Equivalente a 0 horas por mês"}]
[]
["11.","Fique à vontade para indicar o funcionamento da central de produção de vapor num dia típico:"]
[]
[null,null,"01:00:00",null,"07:00:00",null,"13:00:00",null,"19:00:00"]
[null,null,"02:00:00",null,"08:00:00",null,"14:00:00",null,"20:00:00"]
[null,null,"03:00:00",null,"09:00:00",null,"15:00:00",null,"21:00:00"]
[null,null,"04:00:00",null,"10:00:00",null,"16:00:00",null,"22:00:00"]
[null,null,"05:00:00",null,"11:00:00",null,"17:00:00",null,"23:00:00"]
[null,null,"06:00:00",null,"12:00:00",null,"18:00:00",null,1]
[]
[]
[]
[]
[]
[]
[]
[]
[]
[]
[]
[]
[]
[]
["12.","Quanto que se consome de combustível/energia com a produção?",null,null,null,null,null,null,null,"Selecione"]
[]
["13.","E, qual é o custo mensal deste insumo energético?",null,null,null,null,null,null,null,"R$/mês"]
[]
["14.","Qual é o custo de manutenção mensal deste sistema?",null,null,null,null,null,null,null,"R$/mês"]
[]
["15.","Fique à vontade para fazer quaisquer considerações abaixo:"]
[]
[]
[]
[]
[]
[]
[]
[]
["16.","Considerações da Mais:"]
[null,"• Informações como fluxograma e faturas do combustível utilizado poderão agregar muito ao desenvolvimento da solução de eficiência energética;\n• Caso não possua algumas das informações solicitadas acima, fique à vontade para fazer suas considerações no campo 15."]
[]
[]
[]
[]
[null,"GOSTARIA DE ANALISAR ALGUM OUTRO PONTO? "]
[]
[]
[]
[]
[]
[]
[null,"CLIQUE EM CONCLUIR E ENVIE OS DADOS PARA RECEBER A ANÁLISE PRÉVIA:"]

{"sheet":"Air","index":7,"n_rows":48,"n_cols":11,"rows_kept":48,"cut":false,"hidden":false,"merged":[[10,1,10,2],[11,1,11,2],[8,1,8,2],[9,1,9,2],[16,1,16,2],[14,1,14,2],[15,1,15,2],[5,9,6,9],[5,8,6,8],[5,1,6,2],[7,1,7,2],[5,3,6,3],[5,6,6,6],[12,1,12,2],[13,1,13,2],[47,1,47,10],[35,1,38,10],[26,1,32,10]]}
[]
[]
[]
[]
["1.","Poderia listar os equipamentos atualmente instalados em sua unidade?"]
[null,"Equipamento",null,"Tipo de Compressor","Potência","Fluxo unit.","Qtde","Pot. Total","Ano de Fabricação","Operacional\nReserva","Pressão "]
[null,null,null,null,"KW","CFM/PCM",null,"KW",null,null,"barg"]
[1,null,null,null,null,null,null,{"$f":"E8*G8","v":0}]
[2,null,null,null,null,null,null,0]
[3,null,null,null,null,null,null,0]
[4,null,null,null,null,null,null,0]
[5,null,null,null,null,null,null,0]
[6,null,null,null,null,null,null,0]
[7,null,null,null,null,null,null,0]
[8,null,null,null,null,null,null,0]
[9,null,null,null,null,null,null,0]
[10,null,null,null,null,null,null,0]
[null,"Total",null,null,null,{"$f":"SUM(F8:F17,G8:G18)","v":0},{"$f":"SUM(G8:G17)","v":0},{"$f":"SUM(H8:H17)","v":0}]
[]
["2.","Qual é a pressão mínima de trabalho do sistema?",null,null,null,null,null,null,null,null,"barg"]
[]
["3.","Poderia nos informar a média da manutenção mensal do sistema?",null,null,null,null,null,null,null,null,"R$/mês"]
[]
["4.","Como seu sistema opera?",null,null,null,null,"horas/dia",null,null,"dias/semana"]
[]
["5.","Fique à vontade para fazer quaisquer considerações abaixo:"]
[]
[]
[]
[]
[]
[]
[]
[]
["6.","Considerações da Mais:"]
[null,"• Informações como fluxograma utilizado poderão agregar muito ao desenvolvimento da solução de eficiência energética;\n• Caso não possua algumas das informações solicitadas acima, fique à vontade para fazer suas considerações no campo 5."]
[]
[]
[]
[]
[null,"GOSTARIA DE ANALISAR ALGUM OUTRO PONTO? "]
[]
[]
[]
[]
[]
[]
[null,"CLIQUE EM CONCLUIR E ENVIE OS DADOS PARA RECEBER A ANÁLISE PRÉVIA:"]

{"sheet":"+Infos","index":8,"n_rows":44,"n_cols":2,"rows_kept":44,"cut":false,"hidden":false,"merged":[[5,1,33,10],[43,1,43,10]]}
[]
[]
[]
[]
[null,"Fique à vontade para listar abaixo quaisquer informações que julgue interessante ao projeto:"]
[]
[]
[]
[]
[]
[]
[]
[]
[]
[]
[]
[]
[]
[]
[]
[]
[]
[]
[]
[]
[]
[]
[]
[]
[]
[]
[]
[]
[]
[]
[]
[null,"GOSTARIA DE ANALISAR ALGUM OUTRO PONTO? "]
[]
[]
[]
[]
[]
[]
[null,"CLIQUE EM CONCLUIR E ENVIE OS DADOS PARA RECEBER A ANÁLISE PRÉVIA:"]

{"sheet":"Cadastros","index":9,"n_rows":189,"n_cols":63,"rows_kept":189,"cut":false,"hidden":true,"merged":[]}
[null,"Estado",null,null,"Concessionária",null,null,null,"Subgrupo de Contratação",null,null,null,"Modalidade",null,null,"Mercado Livre",null,null,"Valor do Mercado Livre",null,null,null,null,"Possui Geração",null,null,"Possui Expansão",null,null,"Matriz Energética",null,null,"Distribuidoras de GN",null,null,null,"Unidades",null,null,"Tipo de Lâmpada",null,null,"Tipo de Luminária",null,null,null,"Tipo de Compressor",null,null,"Operação",null,null,"Condensação",null,null,"Acionamento",null,null,"Necessidade do Cliente - Água Gelada",null,null,null,"Emails"]
[{"$f":"C2","v":"…"},"Selecione um estado","…",null,"Selecione a concessionária","…","…",{"$f":"K2","v":"..."},"Selecione","…","...",{"$f":"N2","v":"…"},"Selecione","…",null,"Marcação",0,null,"Marcação",0,null,null,null,"Marcação",0,null,"Marcação",0,null,"Selecione","...",null,"Selecione","...","...",null,"Selecione","...",null,"Selecione","...",null,"Selecione","...",null,null,"Selecione","...",null,"Selecione","...",null,"Selecione","...",null,"Selecione","...",null,"Economia",{"$f":"IF(BI2=TRUE,\"Sim\",\"Não\")","v":"Não"},false,null,"comercial@maisenergia.com"]
["AC","Acre","AC",null,"AMAZONAS ENERGIA","Amazonas Distribuidora de Energia S/A.","AM",1,"B3","Baixa Tensão",1,1,"Horo-sazonal Azul",1,null,"Legenda:",null,null,null,null,null,null,null,"Legenda:",null,null,"Legenda:",null,null,"Energia Elétrica",1,null,"Algás","AL",1,null,"m³/mês",1,null,"Dicróica",1,null,"Sobrepor",1,null,null,"Alternativo",1,null,"Operacional",1,null,"Água",1,null,"Inversores",1,null,"Conforto",{"$f":"IF(BI3=TRUE,\"Sim\",\"Não\")","v":"Não"},false,null,"fcabral@maisenergia.com"]
["AL","Alagoas","AL",null,"AMPLA","Ampla Energia e Serviços S/A","RJ",2,"AS","Subterrânea",2,2,"Horo-sazonal Verde",2,null,"1 - Sim",null,null,null,null,null,null,null,"1 - Sim",null,null,"1 - Sim",null,null,"Gás Natural",2,null,"Bahiagás","BA",2,null,"kWh/mês",2,null,"Fluorescente PL Compacta",2,null,"Embutir",2,null,null,"Parafuso",2,null,"Reserva",2,null,"Ar",2,null,"Soft-Starter",2,null,"Nova Instalação",{"$f":"IF(BI4=TRUE,\"Sim\",\"Não\")","v":"Não"},false,null,"fruy@maisenergia.com"]
["AP","Amapá","AP",null,"BANDEIRANTE","Bandeirante Energia S.A. ","SP",3,"A4","2,3 a 25 kV",3,3,"Convencional",3,null,"2 - Não",null,null,"Legenda:",null,null,null,null,"2 - Não",null,null,"2 - Não",null,null,"Biomassa",3,null,"BR Distribuidora","ES",3,null,"kg/mês",3,null,"Fluorescente Tubular T10",3,null,"Sanca",3,null,null,"Centrifugo",3,null,null,null,null,null,null,null,"Não Possui",2,null,null,null,null,null,"nbastos@maisenergia.com"]
["AM","Amazonas","AM",null,"BOA VISTA","Boa Vista Energia S/A","RR",4,"A3a","30 a 44 kV",4,null,{"$f":"VLOOKUP(N6,$L$2:$M$5,2)","v":"Selecione"},{"$f":"VLOOKUP(EE!$J$13,$M$2:$N$5,2,FALSE)","v":"…"},null,"0 - Não preenchido",null,null,"abaixo de R$120/MWh",null,null,5,null,"0 - Não preenchido",null,null,"0 - Não preenchido",null,null,"Carvão",4,null,"Cebgás","DF",4,null,"litros/mês",4,null,"Fluorescente Tubular T5",4,null,"Arandela",4,null,null,"Parafuso com Inver.",4]
["BA","Bahia","BA",null,"CAIUÁ-D","Caiuá Distribuição de Energia S/A","SP",5,"A3","69kV",5,null,null,null,null,null,null,null,"de R$120/MWh a R$170/MWh",null,null,1,null,null,null,null,null,null,null,"GLP",5,null,"Ceg","RJ",5,null,null,null,null,"Fluorescente Tubular T8",5,null,"Petala",5,null,null,"...",5]
["CE","Ceará","CE",null,"CEA","Companhia de Eletricidade do Amapá*","AP",6,"A2","88 a 138 kV",6,null,null,null,null,null,null,null,"de R$170/MWh a R$220/MWh",null,null,2,null,null,null,null,null,null,null,"Óleo",6,null,"Ceg Rio","RJ",6,null,null,null,null,"Halógena",6,null,"Spot",6]
["DF","Distrito Federal","DF",null,"CEAL","Companhia Energética de Alagoas","AL",null,{"$f":"VLOOKUP(K9,H2:K8,2)","v":"Selecione"},null,{"$f":"VLOOKUP(EE!$H$13,I2:K8,3,FALSE)","v":"..."},null,null,null,null,null,null,null,"de R$220/MWh a R$270/MWh",null,null,3,null,null,null,null,null,null,null,"Outros",7,null,"Cegás","CE",7,null,null,null,null,"Incandescente",7,null,"Projetor",7]
["ES","Espírito Santo","ES",null,"CEB-DIS","CEB Distribuição S/A","DF",null,null,null,null,null,null,null,null,null,null,null,"a partir de R$270/MWh",null,null,4,null,null,null,null,null,null,null,null,null,null,"Cigás","AM",8,null,null,null,null,"LED",8,null,"Refletor",8]
["GO","Goiás","GO",null,"CEEE","Companhia Estadual de Distribuição de Energia Elétrica","RS",null,null,null,null,null,null,null,null,null,null,null,"Não preenchido",null,null,0,null,null,null,null,null,null,null,"Água Quente",{"$f":"VLOOKUP(AQ!$H$5,AD2:AE9,2,FALSE)","v":"..."},null,"Comgás","SP",9,null,null,null,null,"Vapor de Sódio",9,null,"Tartaruga",9]
["MA","Maranhão","MA",null,"CELESC","Celesc Distribuição S.A.","SC",null,null,null,null,null,null,null,null,null,null,null,null,null,null,null,null,null,null,null,null,null,null,"Vapor",{"$f":"VLOOKUP(Steam!$H$5,AD2:AE9,2,FALSE)","v":"..."},null,"Compagás","PR",10,null,null,null,null,"Vapor Metálico",10,null,"...",10]
["MT","Mato Grosso","MT",null,"CELG","Celg Distribuição S.A.","GO",null,null,null,null,null,null,null,null,null,null,null,null,null,null,null,null,null,null,null,null,null,null,null,null,null,"Gas Brasiliano","SP",11,null,null,null,null,"Vapor Mercúrio",11,null,"...",11]
["MS","Mato Grosso do Sul","MS",null,"CELPA","Centrais Elétricas do Pará S/A.","PA",null,null,null,null,null,null,null,null,null,null,null,null,null,null,null,null,null,null,null,null,null,null,null,null,null,"Gasmig","MG",12,null,null,null,null,"Lâmpada Mista",12,null,"...",12]
["MG","Minas Gerais","MG",null,"CELPE","Companhia Energética de Pernambuco","PE",null,null,null,null,null,null,null,null,null,null,null,null,null,null,null,null,null,null,null,null,null,null,null,null,null,"Gaspisa","PI",13,null,null,null,null,"...",13,null,"...",13]
["PA","Pará","PA",null,"CEMAR","Companhia Energética do Maranhão","MA",null,null,null,null,null,null,null,null,null,null,null,null,null,null,null,null,null,null,null,null,null,null,null,null,null,"MTGás","MT",14,null,null,null,null,"...",14,null,"...",14]
["PB","Paraíba","PB",null,"CEMIG","CEMIG Distribuição S/A","MG",null,null,null,null,null,null,null,null,null,null,null,null,null,null,null,null,null,null,null,null,null,null,null,null,null,"MSGas","MS",15]
["PR","Paraná","PR",null,"CEPISA","Companhia Energética do Piauí","PI",null,null,null,null,null,null,null,null,null,null,null,null,null,null,null,null,null,null,null,null,null,null,null,null,null,"PBGás","PB",16]
["PE","Pernambuco","PE",null,"CERON","Centrais Elétricas de Rondônia  S/A.","RO",null,null,null,null,null,null,null,null,null,null,null,null,null,null,null,null,null,null,null,null,null,null,null,null,null,"Potigás","RN",17]
["PI","Piauí","PI",null,"CERR","Companhia Energética de Roraima*","RR",null,null,null,null,null,null,null,null,null,null,null,null,null,null,null,null,null,null,null,null,null,null,null,null,null,"Gás Natural Fenosa","SP",18]
["RJ","Rio de Janeiro","RJ",null,"CFLO","Companhia Força e Luz do Oeste ","PR",null,null,null,null,null,null,null,null,null,null,null,null,null,null,null,null,null,null,null,null,null,null,null,null,null,"SCGás","SC",19]
["RN","Rio Grande do Norte","RN",null,"CHESP","Companhia Hidroelétrica São Patrício ","GO",null,null,null,null,null,null,null,null,null,null,null,null,null,null,null,null,null,null,null,null,null,null,null,null,null,"Sergás","SE",20]
["RS","Rio Grande do Sul","RS",null,"CJE","Companhia Jaguari de Energia ","SP",null,null,null,null,null,null,null,null,null,null,null,null,null,null,null,null,null,null,null,null,null,null,null,null,null,"Sulgás","RS",21]
["RO","Rondônia","RO",null,"CNEE","Companhia Nacional de Energia Elétrica ","SP",null,null,null,null,null,null,null,null,null,null,null,null,null,null,null,null,null,null,null,null,null,null,null,null,null,"Goiasgás","GO",22]
["RR","Roraima","RR",null,"COCEL","Companhia Campolarguense de Energia","PR",null,null,null,null,null,null,null,null,null,null,null,null,null,null,null,null,null,null,null,null,null,null,null,null,null,"Gasmar","MA",23]
["SC","Santa Catarina","SC",null,"COELBA","Companhia de Eletricidade do Estado da Bahia","BA"]
["SP","São Paulo","SP",null,"COELCE","Companhia Energética do Ceará","CE"]
["SE","Sergipe","SE",null,"COOPERALIANÇA","Cooperativa Aliança","SC"]
["TO","Tocantins","TO",null,"COPEL-DIS","Copel Distribuição S/A","PR"]
[null,null,null,null,"COSERN","Companhia Energética do Rio Grande do Norte","RN"]
[null,"Selecione",{"$f":"VLOOKUP(Menu!H23,B1:C29,2,FALSE)","v":"…"},null,"CPFL LESTE PAULISTA","Companhia Paulista de Energia Elétrica ","SP"]
[null,null,null,null,"CPFL MOCOCA","Companhia Luz e Força Mococa ","SP"]
[null,null,null,null,"CPFL PAULISTA","Companhia Paulista de Força e Luz","SP"]
[null,null,null,null,"CPFL PIRATININGA","Companhia Piratininga de Força e Luz","SP"]
[null,null,null,null,"CPFL SANTA CRUZ","Companhia Luz e Força Santa Cruz","SP"]
[null,null,null,null,"CSPE","Companhia Sul Paulista de Energia","SP"]
[null,null,null,null,"DEMEI","Departamento Municipal de Energia de Ijuí","RS"]
[null,null,null,null,"DMED","DME Distribuição S.A. - DMED ","MG"]
[null,null,null,null,"EBO","Energisa Borborema – Distribuidora de Energia S.A.","PB"]
[null,null,null,null,"EDEVP","Empresa de Distribuição de Energia Vale Paranapanema S.A. ","SP"]
[null,null,null,null,"EEB","Empresa Elétrica Bragantina S.A. ","SP"]
[null,null,null,null,"EFLJC ","Empresa Força e Luz João Cesa Ltda. ","SC"]
[null,null,null,null,"EFLUL ","Empresa Força e Luz Urussanga Ltda. ","SC"]
[null,null,null,null,"ELEKTRO","Elektro Eletricidade e Serviços S/A.","SP"]
[null,null,null,null,"ELETROACRE","Companhia de Eletricidade do Acre","AC"]
[null,null,null,null,"ELETROCAR","Centrais Elétricas de Carazinho S/A.","RS"]
[null,null,null,null,"ELETROPAULO","Eletropaulo Metropolitana Eletricidade de São Paulo S/A","SP"]
[null,null,null,null,"ELFSM","Empresa Luz e Força Santa Maria S.A.","ES"]
[null,null,null,null,"EMG","Energisa Minas Gerais - Distribuidora de Energia S.A.","MG"]
[null,null,null,null,"EMS","Energisa Mato Grosso do Sul - Distribuidora de Energia S.A.","MS"]
[null,null,null,null,"EMT","Energisa Mato Grosso - Distribuidora de Energia ","MT"]
[null,null,null,null,"ENERGISA SE","Energisa Sergipe - Distribuidora de Energia S.A.","SE"]
[null,null,null,null,"ENF","Energisa Nova Friburgo - Distribuidora de Energia S.A.","RJ"]
[null,null,null,null,"EPB","Energisa Paraíba - Distribuidora de Energia S.A. ","PB"]
[null,null,null,null,"ESCELSA","Espírito Santo Centrais Elétricas S/A.","ES"]
[null,null,null,null,"ETO","ENERGISA TOCANTINS - DISTRIBUIDORA DE ENERGIA S.A.","TO"]
[null,null,null,null,"FORCEL","Força e Luz Coronel Vivida Ltda","PR"]
[null,null,null,null,"HIDROPAN","Hidroelétrica Panambi S/A.","RS"]
[null,null,null,null,"IENERGIA","Iguaçu Distribuidora de Energia Elétrica Ltda","SC"]
[null,null,null,null,"LIGHT","Light Serviços de Eletricidade S/A.","RJ"]
[null,null,null,null,"MUXENERGIA","MUXENERGIA","RS"]
[null,null,null,null,"RGE","Rio Grande Energia S/A.","RS"]
[null,null,null,null,"RGE-SUL","RGE SUL Distribuidora Gaúcha de Energia S/A.","RS"]
[null,null,null,null,"SULGIPE","Companhia Sul Sergipana de Eletricidade - SULGIPE","SE"]
[null,null,null,null,"UHENPAL","Usina Hidroelétrica Nova Palma Ltda. ","TO"]
[]
[]
[null,"Acre","Alagoas","Amazonas","Amapá","Bahia","Ceará","Distrito Federal","Espírito Santo","Goiás","Maranhão","Minas Gerais","Mato Grosso do Sul","Mato Grosso","Pará","Paraíba","Pernambuco","Piauí","Paraná","Rio de Janeiro","Rio Grande do Norte","Rondônia","Roraima","Rio Grande do Sul","Santa Catarina","Sergipe","São Paulo","Tocantins"]
[null,"AC","AL","AM","AP","BA","CE","DF","ES","GO","MA","MG","MS","MT","PA","PB","PE","PI","PR","RJ","RN","RO","RR","RS","SC","SE","SP","TO"]
[null,"Selecione a concessionária","Selecione a concessionária","Selecione a concessionária","Selecione a concessionária","Selecione a concessionária","Selecione a concessionária","Selecione a concessionária","Selecione a concessionária","Selecione a concessionária","Selecione a concessionária","Selecione a concessionária","Selecione a concessionária","Selecione a concessionária","Selecione a concessionária","Selecione a concessionária","Selecione a concessionária","Selecione a concessionária","Selecione a concessionária","Selecione a concessionária","Selecione a concessionária","Selecione a concessionária","Selecione a concessionária","Selecione a concessionária","Selecione a concessionária","Selecione a concessionária","Selecione a concessionária","Selecione a concessionária"," "]
[null,"ELETROACRE","CEAL","AMAZONAS ENERGIA","CEA","COELBA","COELCE","CEB-DIS","ELFSM","CELG","CEMAR","CEMIG","EMS","EMT","CELPA","EBO","CELPE","CEPISA","CFLO","AMPLA","COSERN","CERON","BOA VISTA","RGE-SUL","CELESC","ENERGISA SE","BANDEIRANTE","ETO"]
[null,"-","-","-","-","-","-","-","ESCELSA","CHESP","-","DMED","-","-","-","EPB","-","-","COCEL","ENF","-","-","CERR","CEEE","COOPERALIANÇA","SULGIPE","CAIUÁ-D","UHENPAL"]
[null,"-","-","-","-","-","-","-","-","-","-","EMG","-","-","-","-","-","-","COPEL-DIS","LIGHT","-","-","-","DEMEI","EFLUL ","-","CJE","-"]
[null,"-","-","-","-","-","-","-","-","-","-","-","-","-","-","-","-","-","FORCEL","-","-","-","-","ELETROCAR","IENERGIA","-","CNEE","-"]
[null,"-","-","-","-","-","-","-","-","-","-","-","-","-","-","-","-","-","-","-","-","-","-","HIDROPAN","EFLJC ","-","CPFL LESTE PAULISTA","-"]
[null,"-","-","-","-","-","-","-","-","-","-","-","-","-","-","-","-","-","-","-","-","-","-","MUXENERGIA","-","-","CPFL MOCOCA","-"]
[null,"-","-","-","-","-","-","-","-","-","-","-","-","-","-","-","-","-","-","-","-","-","-","RGE","-","-","CPFL PAULISTA","-"]
[null,"-","-","-","-","-","-","-","-","-","-","-","-","-","-","-","-","-","-","-","-","-","-","-","-","-","CPFL PIRATININGA","-"]
[null,"-","-","-","-","-","-","-","-","-","-","-","-","-","-","-","-","-","-","-","-","-","-","-","-","-","CPFL SANTA CRUZ","-"]
[null,"-","-","-","-","-","-","-","-","-","-","-","-","-","-","-","-","-","-","-","-","-","-","-","-","-","CSPE","-"]
[null,"-","-","-","-","-","-","-","-","-","-","-","-","-","-","-","-","-","-","-","-","-","-","-","-","-","EDEVP","-"]
[null,"-","-","-","-","-","-","-","-","-","-","-","-","-","-","-","-","-","-","-","-","-","-","-","-","-","EEB","-"]
[null,"-","-","-","-","-","-","-","-","-","-","-","-","-","-","-","-","-","-","-","-","-","-","-","-","-","ELEKTRO","-"]
[null,"-","-","-","-","-","-","-","-","-","-","-","-","-","-","-","-","-","-","-","-","-","-","-","-","-","ELETROPAULO","-"]
[]
[]
[]
[null,"B3","AS","A4","A3a","A3","A2"]
[null,"Selecione","Selecione","Selecione","Selecione","Selecione","Selecione"]
[null,"Convencional","Horo-sazonal Azul","Horo-sazonal Azul","Horo-sazonal Azul","Horo-sazonal Azul","Horo-sazonal Azul"]
[null,"Branca","Horo-sazonal Verde","Horo-sazonal Verde","Horo-sazonal Verde"]
[]
[]
[]
[]
[]
[]
[]
[]
[]
[]
[]
[]
[null,null,null,null,"Faltantes"]
[null,null,null,null,{"$f":"G110","v":"CAIUÁ-D"},null,"RGE-SUL","ELETROPAULO"]
[null,null,null,null,{"$f":"G113","v":"CEB-DIS"},null,"AMAZONAS ENERGIA","AMAZONAS ENERGIA"]
[null,null,null,null,{"$f":"G123","v":"CERR"},null,"AMPLA","AMPLA"]
[null,null,null,null,{"$f":"G124","v":"CFLO"},null,"BANDEIRANTE","BOA VISTA ENERGIA"]
[null,null,null,null,"CHESP",null,"BOA VISTA","CEA"]
[null,null,null,null,"CJE",null,"CAIUÁ-D","CEAL"]
[null,null,null,null,"CNEE",null,"CEA","CEDRAP"]
[null,null,null,null,{"$f":"G134","v":"CPFL LESTE PAULISTA"},null,"CEAL","CEDRI"]
[null,null,null,null,{"$f":"G135","v":"CPFL MOCOCA"},null,"CEB-DIS","CEEE"]
[null,null,null,null,{"$f":"G139","v":"CSPE"},null,"CEEE","CEJAMA"]
[null,null,null,null,{"$f":"G140","v":"DEMEI"},null,"CELESC","CELESC"]
[null,null,null,null,"DMED",null,"CELG"]
[null,null,null,null,"EBO",null,"CELPA","CELG"]
[null,null,null,null,"EDEVP",null,"CELPE","CELPA"]
[null,null,null,null,"EEB",null,"CEMAR","CELPE"]
[null,null,null,null,{"$f":"G145","v":"EFLJC "},null,"CEMIG","CEMAR"]
[null,null,null,null,"EFLUL ",null,"CEPISA","CEMIG"]
[null,null,null,null,{"$f":"G151","v":"ELFSM"},null,"CERON","CEPISA"]
[null,null,null,null,{"$f":"G155","v":"ENF"},null,"CERR","CEPRAG"]
[null,null,null,null,{"$f":"G160","v":"FORCEL"},null,"CFLO","CERAÇA "]
[null,null,null,null,{"$f":"COUNTA(E105:E124)","v":20},null,"CHESP","CERAL"]
[null,null,null,null,null,null,"CJE","CERAL DIS"]
[null,null,null,null,null,null,"CNEE","CERBRANORTE"]
[null,null,null,null,null,null,"COCEL","CERCOS",null,null,"AME"]
[null,null,null,null,null,null,"COELBA","CEREJ"]
[null,null,null,null,null,null,"COELCE","CERES"]
[null,null,null,null,null,null,"COOPERALIANÇA","CERGAL"]
[null,null,null,null,null,null,"COPEL-DIS","CERGAPA"]
[null,null,null,null,null,null,"COSERN","CERGRAL"]
[null,null,null,null,null,null,"CPFL LESTE PAULISTA","CERILUZ"]
[null,null,null,null,null,null,"CPFL MOCOCA","CERIM"]
[null,null,null,null,null,null,"CPFL PAULISTA","CERIPA"]
[null,null,null,null,null,null,"CPFL PIRATININGA","CERIS","CELESC-DIS"]
[null,null,null,null,null,null,"CPFL SANTA CRUZ","CERMC","CELESC-DIS"]
[null,null,null,null,null,null,"CSPE","CERMISSÕES"]
[null,null,null,null,null,null,"DEMEI","CERMOFUL"]
[null,null,null,null,null,null,"DMED","CERNHE"]
[null,null,null,null,null,null,"EBO","CERON"]
[null,null,null,null,null,null,"EDEVP","CERPALO"]
[null,null,null,null,null,null,"EEB","CERRP"]
[null,null,null,null,null,null,"EFLJC ","CERSUL"]
[null,null,null,null,null,null,"EFLUL ","CERTAJA"]
[null,null,null,null,null,null,"ELEKTRO","CERTEL"]
[null,null,null,null,null,null,"ELETROACRE","CERTREL"]
[null,null,null,null,null,null,"ELETROCAR","CETRIL"]
[null,null,null,null,null,null,"ELETROPAULO","CHESP"]
[null,null,null,null,null,null,"ELFSM","COCEL"]
[null,null,null,null,null,null,"EMG","COELBA"]
[null,null,null,null,null,null,"EMT","COELCE"]
[null,null,null,null,null,null,"EMS","COOPERALIANÇA"]
[null,null,null,null,null,null,"ENF","COOPERCOCAL"]
[null,null,null,null,null,null,"EPB","COOPERLUZ"]
[null,null,null,null,null,null,"ESCELSA","COOPERMILA"]
[null,null,null,null,null,null,"ENERGISA SE","COORSEL"]
[null,null,null,null,null,null,"ETO","COPEL"]
[null,null,null,null,null,null,"FORCEL","COPEL-DIS"]
[null,null,null,null,null,null,"HIDROPAN","COSERN"]
[null,null,null,null,null,null,"IENERGIA","CPFL JAGUARI"]
[null,null,null,null,null,null,"LIGHT","CPFL PAULISTA"]
[null,null,null,null,null,null,"MUXENERGIA","CPFL PIRATININGA"]
[null,null,null,null,null,null,"RGE","CPFL SANTA CRUZ"]
[null,null,null,null,null,null,"SULGIPE","CRELUZ-D"]
[null,null,null,null,null,null,"UHENPAL","CRERAL"]
[null,null,null,null,null,null,null,"DEMEI"]
[null,null,null,null,null,null,null,"DMED"]
[null,null,null,null,null,null,null,"BANDEIRANTE"]
[null,null,null,null,null,null,null,"ESCELSA"]
[null,null,null,null,null,null,null,"ELEKTRO"]
[null,null,null,null,null,null,null,"ELETROCAR"]
[null,null,null,null,null,null,null,"EMG"]
[null,null,null,null,null,null,null,"EMS"]
[null,null,null,null,null,null,null,"EMT"]
[null,null,null,null,null,null,null,"ENERGISA SE"]
[null,null,null,null,null,null,null,"EPB"]
[null,null,null,null,null,null,null,"ESS"]
[null,null,null,null,null,null,null,"ETO"]
[null,null,null,null,null,null,null,"HIDROPAN"]
[null,null,null,null,null,null,null,"IENERGIA"]
[null,null,null,null,null,null,null,"LIGHT"]
[null,null,null,null,null,null,null,"MUXENERGIA"]
[null,null,null,null,null,null,null,"NOVA PALMA"]
[null,null,null,null,null,null,null,"RGE"]
[null,null,null,null,null,null,null,"RGE SUL"]
[null,null,null,null,null,null,null,"SULGIPE"]
[null,null,null,null,null,null,null,"UHENPAL"]